{"text_format":"3","workbook":"xlsx","n_sheets":5,"sheets":["7 кл.","8 кл.","9 кл.","10 кл.","11 кл."],"not_rendered":{"external_links":1},"read":"whole","date_system":"1900"}

{"sheet":"7 кл.","index":0,"n_rows":11,"n_cols":14,"rows_kept":11,"merged":[[1,0,2,13]]}
[]
["Предварительный протокол по итогам муниципального этапа ВсОШ/РОШ  по предмету  Физическая культура     Лаишевский  муниципального района в 2019-2020 учебном году                                                 \n"]
[]
["№ п/п","Муниципалитет","Полное наименование образовательного учреждения (по уставу)","шифр ","Класс","Дата рождения","Пол","Балл","Апеляционный балл","Итоговый балл","Максимальный балл","Статус","Фамилия, имя, отчество педагога, подготовившего участника олимпиады","Полное наименование образовательного учреждения (по уставу)"]
[1,"Лаишевский","МБОУ \"СОШ пос. им. 25 Октября\"","Ф-7-3",7,{"$f":"'[1]7 кл.'!H12","v":"2006-08-08"},{"$f":"'[1]7 кл.'!I12","v":"м"},75,null,75,100,"призер",{"$f":"'[1]7 кл.'!$J$12","v":"Суханов Е.Г."},{"$f":"'[1]7 кл.'!$K$12","v":"МБОУ \"СОШ пос. им. 25 Октября\""}]
[2,{"$f":"'[1]7 кл.'!B8","v":"Лаишевский "},{"$f":"'[1]7 кл.'!C8","v":"Муниципальное бюджетное общеобразовательное учреждение \"Гимназия №1 г. Лаишево\" Лаишевского муниципального района Республики Татарстан"},"Ф-7-3",7,{"$f":"'[1]7 кл.'!H8","v":"2006-11-16"},{"$f":"'[1]7 кл.'!I8","v":"м"},66,null,66,100,"участник",{"$f":"'[1]7 кл.'!J8","v":"Козин Сергей Петрович "},{"$f":"'[1]7 кл.'!K8","v":"Муниципальное бюджетное общеобразовательное учреждение \"Гимназия №1 г. Лаишево\" Лаишевского муниципального района Республики Татарстан"}]
[3,{"$f":"'[1]7 кл.'!B13","v":"Лаишевский"},{"$f":"'[1]7 кл.'!C13","v":"МБОУ \"Столбищенская общеобразовательная школа имени Героя Советского Союза Алексея Петровича Малышева\""},"Ф-7-6",7,{"$f":"'[1]7 кл.'!H13","v":"2006-06-17"},"ж",90,null,90,100,"победитель",{"$f":"'[1]7 кл.'!J13","v":"Тазетдинов Завдят Шайхутдинович"},{"$f":"'[1]7 кл.'!K13","v":"МБОУ \"Столбищенская общеобразовательная школа имени Героя Советского Союза Алексея Петровича Малышева\""}]
[4,{"$f":"'[1]7 кл.'!B9","v":"Лаишевский"},{"$f":"'[1]7 кл.'!C9","v":"Муниципальное бюджетное общеобразовательное учреждение \"Малоелгинская средняя общеобразовательная школа"},"Ф-7-4",{"$f":"'[1]7 кл.'!G9","v":7},2006,"ж",84,null,84,100,"призер",{"$f":"'[1]7 кл.'!J9","v":"Хисамов Расим Зуфарович"},{"$f":"'[1]7 кл.'!K9","v":"Муниципальное бюджетное общеобразовательное учреждение \"Малоелгинская средняя общеобразовательная школа"}]
[5,{"$f":"'[1]7 кл.'!B11","v":"Лаишевский"},{"$f":"'[1]7 кл.'!C11","v":"МБОУ \"Сокуровская СОШ им.Г.Р.Державина "},"Ф-7-3",7,"2006-07-06","ж",84,null,84,100,"призер","Абдурашитова Земфира Мустафаевна","МБОУ \"Сокуровская СОШ им.Г.Р.Державина "]
[6,"Лаишевский","МБОУ ЛСОШ №2 имени Героя Советского Союза Б.К.Кузнецова","Ф-7-1",7,"2006-08-24","ж",80,null,80,100,"призер","Харисов Ильшат Назипович","МБОУ ЛСОШ №2 имени Героя Советского Союза Б.К.Кузнецова"]
[7,"Лаишевский","МБОУ \"Большекабанская СОШ\"","Ф-7-2",7,2006,"ж",63,null,63,100,"участник","Макаров Константин Евгеньевич","МБОУ \"Большекабанская СОШ\""]

{"sheet":"8 кл.","index":1,"n_rows":17,"n_cols":14,"rows_kept":17,"merged":[[1,0,2,13]]}
[]
["Предварительный протокол по итогам муниципального этапа ВсОШ/РОШ  по предмету Физическая культура________________________                                                                                                    Лаишевский  муниципального района в 2019-2020 учебном году                                                 \n"]
[]
["№ п/п","Муниципалитет","Полное наименование образовательного учреждения (по уставу)","шифр ","Класс","Дата рождения","Пол","Балл","Апеляционный балл","Итоговый балл","Максимальный балл","Статус","Фамилия, имя, отчество педагога, подготовившего участника олимпиады","Полное наименование образовательного учреждения (по уставу)"]
[1,"Лаишевский","МБОУ \"Столбищенская общеобразовательная школа имени Героя Советского Союза Алексея Петровича Малышева\"","Ф-8-5",8,{"$f":"'[1]8 кл.'!H19","v":"2005-07-19"},"м",86,null,86,100,"победитель","Косов Игорь Сергеевич","МБОУ \"Столбищенская общеобразовательная школа имени Героя Советского Союза Алексея Петровича Малышева\""]
[2,"Лаишевский муниципальный район"," Муниципальное бюджетное общеобразовательное учреждение \"Габишевская средняя общеобразовательная школа имени Махмута Ахметовича Гареева\" ","ф-8-2",8,"2005-03-22","м",78,null,78,100,"призер","Козлова Наталья Викторовна","Муниципальное бюджетное общеобразовательное учреждение \"Габишевская средняя общеобразовательная школа имени Махмута Ахметовича Гареева\" "]
[3,{"$f":"'[1]8 кл.'!B20","v":"Лаишевский"},{"$f":"'[1]8 кл.'!C20","v":"                          Муниципальное бюджетное общеобразовательное учреждение \"Державинская основная общеобразовательная школа\" Лаишевского муниципального района Республики Татарстан\n\n\n"},"Ф-8-6",8,{"$f":"'[1]8 кл.'!H20","v":"2005-10-19"},"м",78,null,78,100,"призер","Валиуллин Ринат Гарифуллович","  Муниципальное бюджетное общеобразовательное учреждение \"Державинская основная общеобразовательная школа\" Лаишевского муниципального района Республики Татарстан"]
[4,"Лаишевский район","МБОУ \"Нармонская СОШ\"","Ф-8-3",{"$f":"'[1]8 кл.'!G12","v":8},"2005-07-22",{"$f":"'[1]8 кл.'!I12","v":"м"},71,null,71,100,"участник","Хасанов Ильнар Хусаинович","МБОУ \"Нармонская СОШ\""]
[5,"Лаишевский","Муниципальное  бюджетное  образовательное учреждение Кирбинская средняя общеобразовательная школа ","Ф-8-4",8,"2005-05-25","м",75,null,75,100,"призер","Гаязов Фарид Ибрагимович","Муниципальное  бюджетное  образовательное учреждение Кирбинская средняя общеобразовательная школа "]
[6,"Лаишевский муниципальный район"," Муниципальное бюджетное общеобразовательное учреждение \"Габишевская средняя общеобразовательная школа имени Махмута Ахметовича Гареева\" ","Ф-8-3",8,"2005-10-03","ж",71,null,71,100,"участник","Рыжов Александр Анатольевич","Муниципальное бюджетное общеобразовательное учреждение \"Габишевская средняя общеобразовательная школа имени Махмута Ахметовича Гареева\" "]
[7,"Лаишевский","Муниципальное бюджетное общеобразовательное учреждение Песчано-Ковалинская средняя общеобразовательная школа Лаишевского муниципального района Республики Татарстан","Ф-8-2",{"$f":"'[1]8 кл.'!G7","v":8},"2006-08-11","ж",69,null,69,100,"участник","Иванов Кирилл Михайлович","Муниципальное бюджетное общеобразовательное учреждение Песчано-Ковалинская средняя общеобразовательная школа Лаишевского муниципального района Республики Татарстан"]
[8,"Лаишевский район","МБОУ \"Нармонская СОШ\"","Ф-8-8",8,"2005-10-17","ж",80,null,80,100,"призер","Хасанов Ильнар Хусаинович","МБОУ \"Нармонская СОШ\""]
[9,"Лаишевский","Муниципальное  бюджетное  образовательное учреждение Кирбинская средняя общеобразовательная школа ","Ф-8-6",8,"2005-03-27","ж",76,null,76,100,"участник","Гаязов Фарид Ибрагимович","Муниципальное  бюджетное  образовательное учреждение Кирбинская средняя общеобразовательная школа "]
[10,"Лаишевский","МБОУ Рождественская СОШ","Ф-8-4",8,"2004-12-12","ж",61,null,61,100,"участник","Чуприн Владимир Васильевич","Муниципальное бюджетное среднее ообщеобразовательное учреждение Рождественская средняя общеобразовательная школа"]
[11,"Лаишевский","МБОУ \"Никольская СОШ\" Лаишевского муниципального района РТ","Ф-8-5",8,"2005-02-04","ж",65,null,65,100,"участник","Волков С.Н.","Муниципальное бюджетное общеобразовательное учреждение \"Никольская средняя общеобразовательная школа\" Лаишевского муниципального района Республики Татарстан"]
[12,"Лаишевский","Муниципальное бюджетное общеобразовательное учреждение Среднедевятовская средняя общеобразовательная школа Лаишевского муниципального района Республики Татарстан","Ф8-7",8,"2005-04-03","ж",80,null,80,100,"призер","Халиуллин Айдар Махмутович","Муниципальное бюджетное общеобразовательное учреждение Среднедевятовская средняя общеобразовательная школа Лаишевского муниципального района Республики Татарстан"]
[13,"Лаишевский ","Муниципальное бюджетное общеобразовательное учреждение \"Гимназия №1 г. Лаишево\" Лаишевского муниципального района Республики Татарстан","Ф-8-1",{"$f":"'[1]8 кл.'!G5","v":8},"2005-01-05",{"$f":"'[1]8 кл.'!I5","v":"ж"},59,null,59,100,"участник","Козин Сергей Петрович ","Муниципальное бюджетное общеобразовательное учреждение \"Гимназия №1 г. Лаишево\" Лаишевского муниципального района Республики Татарстан"]

{"sheet":"9 кл.","index":2,"n_rows":10,"n_cols":14,"rows_kept":10,"merged":[[0,0,1,13]]}
["Предварительный протокол по итогам муниципального этапа ВсОШ/РОШ  по предмету _Физическая культура_______________________                                                                                                    ____________Лаишевский  муниципального района в 2019-2020 учебном году                                                 \n"]
[]
["№ п/п","Муниципалитет","Полное наименование образовательного учреждения (по уставу)","шифр ","Класс","Дата рождения","Пол","Балл","Апеляционный балл","Итоговый балл","Максимальный балл","Статус","Фамилия, имя, отчество педагога, подготовившего участника олимпиады","Полное наименование образовательного учреждения (по уставу)"]
[1,"Лаишевский","Муниципальное бюджетное общеобразовательное учреждение \"Малоелгинская средняя общеобразовательная школа","Ф-9-2",9,"2005-10-29","м",73,null,73,100,"призер","Валиуллин Миннехан Каримович","Муниципальное бюджетное общеобразовательное учреждение \"Малоелгинская средняя общеобразовательная школа"]
[2,"Лаишевский","Муниципальное бюджетное общеобразовательное учреждение Песчано-Ковалинская средняя общеобразовательная школа Лаишевского муниципального района Республики Татарстан","Ф-9-1",9,"2004-11-19","м",68,null,68,100,"участник","Иванов Кирилл Михайлович","Муниципальное бюджетное общеобразовательное учреждение Песчано-Ковалинская средняя общеобразовательная школа Лаишевского муниципального района Республики Татарстан"]
[3,"Лаишевский","Муниципальное бюджетное общеобразовательное учреждение Песчано-Ковалинская средняя общеобразовательная школа Лаишевского муниципального района Республики Татарстан","Ф-9-1",9,"2004-09-07","ж",65,null,65,100,"участник","Иванов Кирилл Михайлович","Муниципальное бюджетное общеобразовательное учреждение Песчано-Ковалинская средняя общеобразовательная школа Лаишевского муниципального района Республики Татарстан"]
[4,"Лаишевский","МБОУ \"Нармонская СОШ\"","Ф-9-2",9,2005,"ж",61,null,61,100,"участник","Хасанов Ильнар Хусаинович","МБОУ \"Нармонская СОШ\""]
[5,"Лаишевский","МБОУ Рождественская СОШ","Ф-9-3",9,"2004-05-21","ж",69,null,69,100,"участник","Корнеев Алексей Борисович","Муниципальное бюджетное среднее ообщеобразовательное учреждение Рождественская средняя общеобразовательная школа"]
[6,"Лаишевский","МБОУ \"Никольская СОШ\" Лаишевского муниципального района РТ","Ф-9-6",9,"2003-02-12","ж",77,null,77,100,"призер","Волков С.Н.","Муниципальное бюджетное общеобразовательное учреждение \"Никольская средняя общеобразовательная школа\" Лаишевского муниципального района Республики Татарстан"]
[7,"Лаишевский ","МБОУ \"СОШ пос. им. 25 Октября\"","Ф-9-4",{"$f":"'[1]9 кл.'!G14","v":9},"2005-02-20",{"$f":"'[1]9 кл.'!I14","v":"ж"},77,null,77,100,"призер","Суханов Е.Г.","МБОУ \"СОШ пос. им. 25 Октября\""]

{"sheet":"10 кл.","index":3,"n_rows":10,"n_cols":14,"rows_kept":10,"merged":[[0,0,1,13]]}
["Предварительный протокол по итогам муниципального этапа ВсОШ/РОШ  по предмету __Физическая культура______________________                                                                                                    _____________________Лаишевский  муниципального района в 2019-2020 учебном году                                                 \n"]
[]
["№ п/п","Муниципалитет","Полное наименование образовательного учреждения (по уставу)","шифр ","Класс","Дата рождения","Пол","Балл","Апеляционный балл","Итоговый балл","Максимальный балл","Статус","Фамилия, имя, отчество педагога, подготовившего участника олимпиады","Полное наименование образовательного учреждения (по уставу)"]
[1,"Лаишевский","МБОУ \"Столбищенская общеобразовательная школа имени Героя Советского Союза Алексея Петровича Малышева\"","Ф-10-5",10,37762,"м",79,null,79,100,"призер","Тазетдинов Завдят Шайхутдинович","МБОУ \"Столбищенская общеобразовательная школа имени Героя Советского Союза Алексея Петровича Малышева\""]
[2,"Лаишевский муниципальный район"," Муниципальное бюджетное общеобразовательное учреждение \"Габишевская средняя общеобразовательная школа имени Махмута Ахметовича Гареева\" ","Ф-10-3",10,"2003-01-22","м",70,null,70,100,"участник","Рыжов Александр Анатольевич","Муниципальное бюджетное общеобразовательное учреждение \"Габишевская средняя общеобразовательная школа имени Махмута Ахметовича Гареева\" "]
[3,"Лаишевский район","МБОУ \"Нармонская СОШ\"","Ф-10-4",10,"2003-06-05","м",65,null,65,100,"участник","Хасанов Ильнар Хусаинович","МБОУ \"Нармонская СОШ\""]
[4,"Лаишевский","МБОУ ЛСОШ №2 имени Героя Советского Союза Б.К.Кузнецова","Ф-10-1",10,"2003-10-11","м",79,null,79,100,"призер","Харисов Ильшат Назипович","МБОУ ЛСОШ №2 имени Героя Советского Союза Б.К.Кузнецова"]
[5,"Лаишевский","МБОУ \"Большекабанская СОШ\"","Ф-10-2",10,2003,"м",69,null,69,100,"участник","Макаров Константин Евгеньевич","МБОУ \"Большекабанская СОШ\""]
[6,"Лаишевский","Муниципальное бюджетное общеобразовательное учреждение \"Малоелгинская средняя общеобразовательная школа\"","Ф-10-2",10,"2002-12-20","ж",85,null,85,100,"призер","Хисамов Расим Зуфарович","Муниципальное бюджетное общеобразовательное учреждение \"Малоелгинская средняя общеобразовательная школа\""]
[7,"Лаишевский муниципальный район"," Муниципальное бюджетное общеобразовательное учреждение \"Габишевская средняя общеобразовательная школа имени Махмута Ахметовича Гареева\" ","Ф-10-1",10,"2003-04-04","ж",88,null,88,100,"победитель","Козлоа Наталья Викторовна.","Муниципальное бюджетное общеобразовательное учреждение \"Габишевская средняя общеобразовательная школа имени Махмута Ахметовича Гареева\" "]

{"sheet":"11 кл.","index":4,"n_rows":9,"n_cols":14,"rows_kept":9,"merged":[[1,0,2,13]]}
[]
["Предварительный протокол по итогам муниципального этапа ВсОШ/РОШ  по предмету ___Физическая культура_____________________                                                                                                    __________Лаишевский  муниципального района в 2019-2020 учебном году                                                 \n"]
[]
["№ п/п","Муниципалитет","Полное наименование образовательного учреждения (по уставу)","шифр ","Класс","Дата рождения","Пол","Балл","Апеляционный балл","Итоговый балл","Максимальный балл","Статус","Фамилия, имя, отчество педагога, подготовившего участника олимпиады","Полное наименование образовательного учреждения (по уставу)"]
[1,"Лаишевский","МБОУ \"Столбищенская общеобразовательная школа имени Героя Советского Союза Алексея Петровича Малышева\"","Ф-11-4",11,37509,"м",72,null,72,100,"участник","Косов Игорь Сергеевич","МБОУ \"Столбищенская общеобразовательная школа имени Героя Советского Союза Алексея Петровича Малышева\""]
[2,"Лаишевский","Муниципальное бюджетное общеобразовательное учреждение \"Малоелгинская средняя общеобразовательная школа\"","Ф-11-1",11,"2002-09-26","м",92,null,92,100,"победитель","Хисамов Расим Зуфарович","Муниципальное бюджетное общеобразовательное учреждение \"Малоелгинская средняя общеобразовательная школа\""]
[3,"Лаишевский","МБОУ Рождественская СОШ","Ф-11-3",11,"2002-08-09","м",76,null,76,100,"призер","Корнеев Алексей Борисович","Муниципальное бюджетное среднее ообщеобразовательное учреждение Рождественская средняя общеобразовательная школа"]
[4,"Лаишевский","МБОУ \"Сокуровская СОШ им. Г.Р. Державина ","Ф-11-1",11,"2002-11-02","ж",85,null,85,100,"призер","Абдурашитова Земфира Мустафаевна","МБОУ \"Сокуровская СОШ им. Г.Р. Державина "]
[5,"Лаишевский","МБОУ \"Столбищенская общеобразовательная школа имени Героя Советского Союза Алексея Петровича Малышева\"","Ф-11-2",11,"2002-05-21","ж",73,null,73,100,"участник","Тазетдинов Завдят Шайхутдинович","МБОУ \"Столбищенская общеобразовательная школа имени Героя Советского Союза Алексея Петровича Малышева\""]